bitfinex/quotes_ETHUSD_20250219
["timestamp","ask_amount","ask_price","bid_price","bid_amount"]
[1739970069568,4.38762614,2716.3,2715.9,0.368194]
[1739970069759,8.06918614,2716.3,2715.6,4.51212]
[1739970069966,4.38762614,2716.3,2715.6,0.8297]
[1739970070263,4.38762614,2716.0,2715.6,0.281]
[1739970070465,0.1496,2716.4,2715.7,0.5487]
[1739970070630,0.7509,2716.2,2715.6,3.96334]
[1739970070829,4.43259,2716.2,2715.7,0.396334]
[1739970071264,0.7509,2716.2,2715.7,0.396334]
[1739970071469,0.7509,2716.2,2715.8,3.68202]
[1739970071816,4.38762614,2716.0,2715.3,8.282]
[1739970072068,3.6825,2715.6,2715.3,8.282]
[1739970073260,4.38762614,2715.4,2715.3,8.282]
[1739970073427,9.68852875,2715.4,2715.3,8.282]
[1739970074134,9.68852875,2715.4,2714.6,0.281]
[1739970074464,5.19882614,2715.4,2714.8,3.68344]
[1739970074630,8.88154614,2715.4,2714.7,7.3672]
[1739970074851,5.19882614,2715.4,2715.0,3.68322]
[1739970075363,3.6823,2715.7,2714.7,0.5487]
[1739970075364,4.38762614,2715.7,2715.2,3.68296]
[1739970075761,0.8167,2715.8,2715.5,3.68255]
[1739970075964,4.38762614,2716.0,2715.6,3.6824]
[1739970076262,4.38762614,2716.0,2715.5,3.68249]
[1739970076457,4.38762614,2716.0,2715.3,13.27424]
[1739970076660,4.38762614,2715.7,2715.2,3.68295]
[1739970076864,4.38762614,2715.7,2715.3,3.68274]
[1739970077162,0.1496,2716.4,2715.4,0.5487]
[1739970077363,8.06932614,2716.2,2715.5,3.68248]
[1739970077667,3.68175,2716.1,2715.4,5.9087]
[1739970077829,3.68175,2716.1,2715.4,9.59134]
[1739970078224,4.38762614,2715.9,2715.4,5.36]
[1739970078620,4.38762614,2715.9,2715.4,9.04263]
[1739970078840,4.38762614,2715.9,2715.6,3.68234]
[1739970079036,4.38762614,2716.2,2715.6,3.68234]
[1739970079551,4.38762614,2716.2,2715.8,3.68213]
[1739970079753,4.38762614,2716.2,2715.7,3.68227]
[1739970080168,4.38762614,2716.2,2715.6,3.68234]
[1739970080345,4.38762614,2716.2,2715.7,3.68227]
[1739970080958,4.38762614,2716.2,2715.6,7.36466]
[1739970081167,8.06925614,2716.2,2715.6,3.68232]
[1739970081473,8.06925614,2716.2,2715.4,9.04257]
[1739970081665,8.06925614,2716.2,2715.5,4.586737]
[1739970081865,4.38762614,2716.2,2715.5,4.586737]
[1739970082071,4.38762614,2715.9,2715.4,5.36]
[1739970082239,4.38762614,2715.9,2715.4,9.04268]
[1739970082656,4.38762614,2715.9,2715.5,3.68249]
[1739970082854,0.8247,2715.8,2715.4,5.36]
[1739970083137,0.8247,2715.8,2715.2,3.68292]
[1739970083335,0.8247,2715.8,2715.3,4.134102]
[1739970083781,4.50685,2715.8,2715.3,4.134102]
[1739970083940,0.8247,2715.8,2715.3,4.134102]
[1739970084278,4.50692,2715.8,2715.1,4.51371]
[1739970084635,8.07005614,2715.6,2715.0,5.36]
[1739970084837,4.50723,2715.5,2714.9,3.68327]
[1739970085041,8.07005614,2715.6,2715.3,3.68275]
[1739970085042,4.38762614,2715.6,2715.3,3.68275]
[1739970085661,0.8246,2715.8,2715.4,3.68261]
[1739970085854,4.38762614,2715.9,2715.4,4.419206]
[1739970086163,4.38762614,2715.9,2715.7,3.68228]
[1739970086483,4.38762614,2715.9,2715.6,3.6824]
[1739970086791,4.38762614,2715.9,2715.5,3.68256]
[1739970087647,4.38762614,2715.9,2715.5,3.68247]
[1739970087874,4.38762614,2715.9,2715.4,5.36]
[1739970088061,3.68216,2715.8,2715.4,5.36]
[1739970089086,4.38762614,2715.9,2715.5,3.68254]
[1739970089450,0.7976,2716.0,2715.7,3.68228]
[1739970089679,0.7976,2716.0,2715.8,3.68208]
[1739970089879,4.38762614,2716.2,2715.8,3.68208]
[1739970090087,4.38762614,2716.2,2715.9,3.68195]
[1739970090250,4.38762614,2716.2,2715.8,3.68208]
[1739970090998,4.38762614,2716.2,2715.9,3.68194]
[1739970091163,4.38762614,2716.2,2715.8,3.68208]
[1739970091887,5.16642614,2716.3,2715.8,4.418521]
[1739970092200,5.16642614,2716.3,2715.9,3.6819]
[1739970093997,5.16642614,2716.3,2715.6,3.68234]
[1739970094149,4.38762614,2716.0,2715.5,3.68248]
[1739970094352,0.8123,2715.9,2715.6,3.68242]
[1739970094886,0.8123,2715.9,2715.6,7.36477]
[1739970095119,0.8123,2715.9,2715.7,3.68226]
[1739970095492,0.8123,2715.9,2715.4,5.36]
[1739970095698,0.8123,2715.9,2715.7,3.68221]
[1739970096637,4.38762614,2716.0,2715.9,3.68202]
[1739970096790,0.7989,2716.2,2715.9,3.68202]
[1739970097639,0.7989,2716.2,2716.0,3.68188]
[1739970098297,0.7989,2716.2,2715.8,3.68215]
[1739970098494,0.7989,2716.2,2715.9,3.682]
[1739970098767,0.7989,2716.2,2715.9,3.68192]
[1739970099050,0.7989,2716.2,2716.0,3.68181]
[1739970099345,0.7989,2716.2,2715.8,3.68204]
[1739970099512,4.38762614,2716.3,2715.9,0.368204]
[1739970100027,4.38762614,2716.3,2716.0,3.68188]
[1739970100631,3.49720937,2716.3,2716.0,3.68188]
[1739970100810,3.49720937,2716.3,2716.1,3.68166]
[1739970101640,0.1496,2716.4,2716.2,3.68154]
[1739970101969,0.1496,2716.4,2716.3,0.423024]
[1739970104163,3.49720937,2716.5,2716.2,3.68152]
[1739970104463,3.49720937,2716.5,2716.1,0.5487]
[1739970104835,3.49720937,2716.5,2716.2,3.68155]
[1739970105767,3.49720937,2716.5,2716.3,3.68135]
[1739970106668,3.49720937,2716.5,2716.4,3.68134]
[1739970106849,3.49720937,2716.5,2716.3,7.36273]
[1739970107051,3.49720937,2716.5,2716.3,4.472493]
[1739970107361,3.49720937,2716.5,2716.4,3.68134]
[1739970107571,3.49720937,2716.5,2716.3,4.472493]
[1739970107724,3.49720937,2716.5,2716.4,3.68134]
[1739970108066,3.49720937,2716.8,2716.4,3.68125]
[1739970108360,3.49720937,2716.8,2716.5,3.68119]
[1739970108562,3.49720937,2716.8,2716.4,0.68381568]
[1739970108720,3.49720937,2716.8,2716.3,9.04145]
[1739970109123,3.49720937,2716.8,2716.3,9.04137]
[1739970109323,3.49720937,2716.8,2716.5,3.68118]
[1739970109526,3.49720937,2716.8,2716.6,3.68104]
[1739970110684,3.49720937,2716.8,2716.7,3.68093]
[1739970110984,3.49720937,2717.1,2716.7,4.417129]
[1739970111137,3.49720937,2717.1,2716.8,3.6808]
[1739970114907,4.27940937,2717.3,2716.9,3.68059]
[1739970115211,3.49720937,2717.3,2717.0,4.048529]
[1739970115513,3.49720937,2717.3,2717.0,3.68047]
[1739970116697,3.49720937,2717.3,2717.1,3.68035]
[1739970118374,3.49720937,2717.3,2716.9,3.68065]
[1739970118574,3.49720937,2717.3,2717.0,3.6804]
[1739970119405,3.49720937,2717.3,2716.7,9.04082]
[1739970119587,3.49720937,2717.3,2716.9,3.68064]
[1739970120000,3.49720937,2717.3,2717.0,3.6805]
[1739970120316,3.49720937,2717.5,2717.3,3.67999]
[1739970120626,0.8033,2717.6,2717.1,4.22898]
[1739970121031,0.8033,2717.6,2717.1,0.5487]
[1739970121206,0.8033,2717.6,2717.2,3.68025]
[1739970121435,3.49720937,2717.3,2716.9,0.5487]
[1739970121654,3.49720937,2717.3,2716.8,3.95779]
[1739970122061,3.49720937,2717.0,2716.7,5.36]
[1739970122625,3.49720937,2717.0,2716.7,9.04091]
[1739970123218,3.49720937,2717.0,2716.7,5.36]
[1739970123652,3.49720937,2717.0,2716.7,9.04091]
[1739970124015,3.49720937,2717.0,2716.7,5.36]
[1739970124255,3.49720937,2717.0,2716.7,9.04092]
[1739970124457,3.49720937,2717.0,2716.7,5.36]
[1739970124612,4.4875,2716.8,2716.7,5.36]
[1739970124812,0.8067,2716.8,2716.7,5.36]
[1739970125255,0.8264,2717.1,2716.7,5.36]
[1739970125465,3.49720937,2717.0,2716.5,5.36]
[1739970125819,7.17780937,2717.0,2716.5,5.36]
[1739970126018,3.49720937,2717.0,2716.5,5.36]
[1739970126223,3.49720937,2717.0,2716.6,3.68094]
[1739970126420,3.49720937,2717.0,2716.5,5.36]
[1739970126962,3.49720937,2716.7,2716.5,5.36]
[1739970127269,0.8149,2716.6,2716.2,8.553]
[1739970127431,7.17855937,2716.4,2716.2,8.276]
[1739970127758,3.49720937,2716.4,2716.2,8.276]
[1739970128362,0.8149,2716.6,2716.2,11.95751]
[1739970128734,3.49720937,2716.7,2716.3,3.68145]
[1739970129245,3.49720937,2716.7,2716.2,11.9576]
[1739970129451,3.49720937,2716.7,2716.3,3.68147]
[1739970129637,0.7994,2716.6,2716.2,8.276]
[1739970129821,3.49720937,2716.4,2716.2,8.276]
[1739970130324,7.17854937,2716.4,2716.2,8.276]
[1739970130735,3.49720937,2716.4,2716.2,8.276]
[1739970131540,7.17857937,2716.4,2716.2,8.276]
[1739970133153,3.49720937,2716.4,2716.2,8.276]
[1739970133523,3.68147,2716.3,2716.2,8.276]
[1739970133866,4.47237,2716.3,2716.2,8.276]
[1739970134277,5.48605831,2716.3,2716.2,8.276]
[1739970134449,4.46118,2715.8,2715.3,5.36]
[1739970134637,1.01368831,2716.3,2715.1,5.36]
[1739970134638,0.7789,2715.5,2715.1,5.36]
[1739970134840,3.49720937,2715.3,2714.9,8.278]
[1739970135054,0.8179,2715.2,2714.9,8.278]
[1739970135237,3.49720937,2715.0,2714.9,8.278]
[1739970135671,7.18044937,2715.0,2714.9,8.278]
[1739970136036,3.49720937,2715.0,2714.9,8.278]
[1739970136374,7.18044937,2715.0,2714.9,8.278]
[1739970136686,8.07049425,2715.0,2714.9,8.278]
[1739970137182,4.38725425,2715.0,2714.9,8.278]
[1739970137878,0.8106,2715.5,2714.9,9.1058]
[1739970138061,0.8106,2715.5,2714.9,12.78909]
[1739970138776,0.8106,2715.5,2715.1,3.68307]
[1739970139087,0.8106,2715.5,2715.0,0.5487]
[1739970139280,4.38725425,2715.3,2714.9,8.278]
[1739970139447,0.8106,2715.5,2715.0,3.68314]
[1739970140449,0.8106,2715.5,2715.0,7.3663]
[1739970140761,0.8106,2715.5,2715.1,3.68307]
[1739970140968,4.38725425,2716.2,2715.4,3.68262]
[1739970141137,0.7994,2716.1,2715.6,3.68234]
[1739970143496,0.7994,2716.1,2715.6,7.36468]
[1739970143639,0.7994,2716.1,2715.7,3.68227]
[1739970144900,0.7994,2716.1,2715.6,3.71916007]
[1739970145050,0.7909,2716.4,2715.8,3.71888007]
[1739970145256,0.7909,2716.4,2716.1,3.68174]
[1739970145466,0.7909,2716.7,2716.0,3.68177]
[1739970145793,0.7909,2716.7,2716.2,3.6816]
[1739970146161,0.7973,2717.0,2716.3,3.68147]
[1739970146367,2.05185143,2717.0,2716.3,3.68147]
[1739970146593,2.05185143,2717.0,2716.4,3.68133]
[1739970146893,2.05185143,2717.0,2716.5,3.68115]
[1739970147196,0.7973,2717.0,2716.6,3.68095]
[1739970147408,4.38725425,2717.1,2716.7,3.68093]
[1739970147995,0.8205,2717.3,2716.5,0.5487]
[1739970148289,0.8205,2717.3,2716.9,3.68066]
[1739970148997,4.38725425,2717.1,2716.7,5.36]
[1739970149206,4.11934543,2717.0,2716.7,5.36]
[1739970149675,0.43872543,2717.0,2716.7,5.36]
[1739970150289,4.11926543,2717.0,2716.7,5.36]
[1739970150449,3.68077,2716.9,2716.7,5.36]
[1739970150647,4.11926543,2717.0,2716.7,5.36]
[1739970150849,0.85065197,2716.9,2716.7,5.36]
[1739970151264,0.43872543,2717.0,2716.7,5.36]
[1739970151674,4.38725425,2717.1,2716.7,5.36]
[1739970151873,8.06765425,2717.1,2716.7,5.36]
[1739970152076,4.38725425,2717.1,2716.7,5.36]
[1739970152276,4.38725425,2717.1,2716.7,3.68093]
[1739970152581,8.06766425,2717.1,2716.5,3.68112]
[1739970152901,8.06766425,2717.1,2716.5,7.36224]
[1739970153078,4.38725425,2717.1,2716.6,3.68098]
[1739970153879,4.38725425,2717.1,2716.3,5.36]
[1739970154089,4.38725425,2717.1,2716.8,3.68067]
[1739970155702,4.38725425,2717.1,2716.8,7.36136]
[1739970155873,4.38725425,2717.1,2716.8,3.68067]
[1739970156080,4.38725425,2717.1,2716.8,7.36136]
[1739970156404,4.38725425,2717.1,2716.8,3.68067]
[1739970156602,4.38725425,2717.1,2716.6,3.68096]
[1739970157107,4.38725425,2717.1,2716.7,3.68085]
[1739970157468,4.38725425,2717.1,2716.8,3.68077]
[1739970157669,4.38725425,2717.1,2716.6,7.36196]
[1739970157976,4.38725425,2717.1,2716.7,3.68088]
[1739970158680,3.49533422,2717.1,2716.7,3.68088]
[1739970158890,3.68055,2717.0,2716.4,6.68123]
[1739970159080,3.68055,2717.0,2716.4,3.68123]
[1739970159278,3.49533422,2717.1,2716.3,5.36]
[1739970159513,3.49533422,2716.8,2716.3,5.36]
[1739970159684,3.49533422,2716.8,2716.3,9.04146]
[1739970160021,7.17614422,2716.8,2716.3,5.36]
[1739970160516,7.17614422,2716.8,2716.3,9.04144]
[1739970160715,3.49533422,2716.8,2716.3,9.04144]
[1739970161017,7.17619422,2716.8,2716.3,3.68144]
[1739970161722,7.17619422,2716.8,2716.1,3.68173]
[1739970161723,3.68094,2716.7,2716.1,3.0]
[1739970162023,0.8263,2716.4,2716.1,3.0]
[1739970162181,0.8263,2716.4,2715.9,13.639]
[1739970162644,0.8263,2716.4,2715.9,8.279]
[1739970162645,3.49533422,2716.2,2715.9,8.279]
[1739970164229,3.49533422,2716.2,2715.9,11.96093]
[1739970164797,3.49533422,2716.2,2715.9,8.279]
[1739970165423,0.8011,2716.0,2715.9,8.279]
[1739970166193,3.68211,2715.9,2715.2,9.04296]
[1739970166545,0.8175,2715.5,2715.2,9.04295]
[1739970166824,0.8175,2715.5,2715.2,9.0429]
[1739970167732,0.8175,2715.5,2715.2,12.7258]
[1739970167932,0.8175,2715.5,2715.2,9.0429]
[1739970168588,0.8175,2715.5,2715.2,12.72578]
[1739970168789,0.8175,2715.5,2715.2,9.04289]
[1739970170131,0.8175,2715.5,2715.2,3.68289]
[1739970170517,0.8175,2715.5,2715.0,7.36625]
[1739970170717,0.8175,2715.5,2715.1,3.68302]
[1739970170938,0.8175,2715.5,2715.0,6.68311]
[1739970171239,0.8175,2715.5,2715.2,7.36585]
[1739970171546,0.8175,2715.5,2715.1,3.6831]
[1739970171731,0.8175,2715.5,2715.0,3.0]
[1739970171931,0.8175,2715.5,2715.1,3.68307]
[1739970172128,3.49533422,2715.9,2715.3,3.68273]
[1739970172332,5.01905964,2715.9,2715.3,3.68273]
[1739970173250,8.70110964,2715.9,2715.3,3.68273]
[1739970173650,3.68216,2715.8,2715.3,3.68273]
[1739970173811,5.01905964,2715.9,2715.3,3.68273]
[1739970174036,4.30133422,2715.9,2715.5,3.68248]
[1739970174671,4.30133422,2715.9,2715.3,3.68277]
[1739970174970,3.68215,2715.8,2715.3,3.68277]
[1739970175366,3.68215,2715.8,2715.1,3.68301]
[1739970175541,3.49533422,2715.6,2715.1,3.68301]
[1739970175944,3.49533422,2715.6,2715.2,3.68289]
[1739970176131,3.49533422,2715.8,2715.3,3.68281]
[1739970176327,0.806,2715.9,2715.4,3.68259]
[1739970176533,3.49533422,2715.8,2715.3,3.68283]
[1739970177230,7.17750422,2715.8,2715.1,3.68309]
[1739970177446,3.6823,2715.7,2715.1,3.68309]
[1739970177625,7.17750422,2715.8,2715.1,3.68298]
[1739970177852,10.85975422,2715.8,2715.2,3.68293]
[1739970178069,3.68235,2715.7,2715.1,3.68298]
[1739970178273,3.49533422,2715.5,2715.0,3.0]
[1739970178473,3.49533422,2715.5,2715.1,7.36603]
[1739970178968,3.49533422,2715.5,2715.2,3.68293]
[1739970179380,3.49533422,2715.5,2715.0,3.0]
[1739970179736,3.49533422,2715.5,2715.1,3.68304]
[1739970180278,3.49533422,2715.5,2715.0,6.6831]
[1739970180577,3.49533422,2715.5,2715.2,3.68296]
[1739970181079,3.49533422,2715.5,2715.2,3.68289]
[1739970181843,3.49533422,2715.5,2715.3,3.68275]
[1739970182046,0.7549,2715.7,2715.4,3.68268]
[1739970182884,0.7549,2715.7,2715.3,3.68283]
[1739970183082,0.7549,2715.7,2715.2,3.68289]
[1739970183379,0.7549,2715.7,2715.3,3.71957471]
[1739970183684,3.49533422,2715.8,2715.5,3.6825]
[1739970184012,0.7894,2715.9,2715.7,3.68229]
[1739970184212,0.7894,2715.9,2715.6,3.68233]
[1739970184342,0.7894,2715.9,2715.6,7.36468]
[1739970184713,0.7894,2715.9,2715.7,3.68226]
[1739970185045,0.7894,2715.9,2715.7,3.68227]
[1739970185256,4.31903422,2716.1,2715.8,3.68215]
[1739970186016,4.31903422,2716.1,2715.6,3.68232]
[1739970186588,4.31903422,2716.1,2715.6,7.36461]
[1739970186798,4.31903422,2716.1,2715.7,3.68227]
[1739970186974,4.31903422,2716.1,2715.6,3.68229]
[1739970187317,3.49533422,2715.8,2715.4,5.36]
[1739970187884,0.8,2715.7,2715.4,5.36]
[1739970188320,3.49533422,2715.5,2715.4,5.36]
[1739970188518,3.49533422,2715.5,2715.1,9.04301]
[1739970188811,3.49533422,2715.5,2715.2,3.68285]
[1739970189187,3.49533422,2715.5,2715.3,3.68276]
[1739970189375,0.8,2715.7,2715.4,3.68269]
[1739970190128,3.49533422,2715.5,2715.1,5.36]
[1739970190326,3.49533422,2715.5,2715.1,9.04301]
[1739970190515,3.49533422,2715.5,2715.2,3.68296]
[1739970191220,7.97769422,2715.7,2715.2,7.36586]
[1739970191605,7.97769422,2715.7,2715.2,3.6829]
[1739970191818,7.97769422,2715.7,2715.2,7.36581]
[1739970192499,7.97769422,2715.7,2715.3,3.68275]
[1739970192500,4.29533422,2715.7,2715.3,3.68275]
[1739970192938,4.29533422,2715.7,2715.5,3.68254]
[1739970193135,4.31673422,2716.0,2715.5,7.36501]
[1739970193366,4.31673422,2716.0,2715.5,3.68247]
[1739970193674,4.31673422,2716.0,2715.7,3.68224]
[1739970193825,0.7815,2716.4,2715.7,4.45553064]
[1739970194166,0.7815,2716.4,2715.8,3.68215]
[1739970194540,0.7815,2716.4,2715.8,3.68208]
[1739970194729,0.7815,2716.4,2715.9,3.68192]
[1739970195143,3.49533422,2716.5,2716.1,3.68173]
[1739970195491,3.49533422,2716.5,2716.0,3.68181]
[1739970196475,3.49533422,2716.2,2715.6,0.5487]
[1739970196684,3.49533422,2715.9,2715.4,9.0426]
[1739970196884,3.92733764,2715.9,2715.4,9.04268]
[1739970197177,3.49533422,2715.9,2715.5,3.68254]
[1739970197542,0.8247,2716.1,2715.5,7.36503]
[1739970197758,0.8247,2716.1,2715.5,3.68249]
[1739970197959,0.8247,2716.1,2715.6,3.68234]
[1739970198156,0.8247,2716.1,2715.7,3.68227]
[1739970198390,0.8247,2716.1,2715.8,3.68214]
[1739970198548,0.8247,2716.1,2715.9,3.68195]
[1739970199167,0.7889,2716.4,2715.9,7.36386]
[1739970199360,0.7889,2716.4,2715.9,3.68191]
[1739970199568,0.7889,2716.4,2716.0,0.0368166]
[1739970199784,0.7889,2716.4,2715.9,3.68193]
[1739970199962,0.7889,2716.4,2716.1,3.68166]
[1739970200675,0.7889,2716.4,2716.1,3.68166]
[1739970200854,0.7889,2716.4,2715.9,3.68191]
[1739970201051,0.7889,2716.4,2715.7,9.04221]
[1739970201255,0.7889,2716.4,2715.9,3.68201]
[1739970202563,4.47026,2716.4,2715.9,3.68201]
[1739970202897,3.49533422,2716.2,2715.7,5.36]
[1739970203207,0.7929,2716.1,2715.7,5.36]
[1739970203356,3.68189,2716.0,2715.7,5.36]
[1739970204166,3.68189,2716.0,2715.3,5.9087]
[1739970204366,3.68209,2715.9,2715.3,9.04273]
[1739970204581,3.68189,2716.0,2715.4,3.68269]
[1739970204786,3.68189,2716.0,2715.5,3.68255]
[1739970205061,0.7929,2716.1,2715.6,3.68242]
[1739970205808,0.7929,2716.1,2715.6,3.68234]
[1739970206106,0.7929,2716.1,2715.8,3.68203]
[1739970207493,0.7929,2716.1,2715.9,3.682]
[1739970207857,0.7728,2716.8,2716.0,0.5487]
[1739970207965,0.7728,2716.8,2716.5,3.68107]
[1739970208375,0.7728,2716.8,2716.3,3.6814]
[1739970208680,3.49533422,2716.6,2716.2,5.36]
[1739970209010,0.803,2716.5,2716.2,9.04148]
[1739970209220,0.803,2716.5,2716.3,3.68136]
[1739970210087,0.8128,2716.9,2716.2,5.36]
[1739970210417,0.8128,2716.9,2716.5,3.6812]
[1739970210572,0.8128,2716.9,2716.2,9.04152]
[1739970210772,0.8128,2716.9,2716.5,3.6812]
[1739970212386,0.8128,2716.9,2716.3,3.68147]
[1739970212715,4.49348,2716.9,2716.4,3.68126]
[1739970213116,4.49348,2716.9,2716.3,3.68147]
[1739970213279,5.30220142,2716.9,2716.2,5.36]
[1739970213481,0.827,2716.7,2716.2,5.36]
[1739970213708,7.17653422,2716.5,2716.2,5.36]
[1739970213906,0.827,2716.4,2716.2,5.36]
[1739970217382,0.827,2716.4,2716.2,9.04158]
[1739970217931,0.827,2716.4,2716.1,3.68167]
[1739970219133,0.827,2716.4,2716.2,3.68157]
[1739970219317,0.827,2716.4,2716.3,3.68147]
[1739970219635,0.8232,2716.7,2716.4,3.68125]
[1739970220419,0.8232,2716.7,2716.4,3.68129]
[1739970220607,0.8232,2716.9,2716.5,3.68114]
[1739970220825,0.8232,2716.9,2716.6,3.68099]
[1739970221133,0.8232,2716.9,2716.7,3.68092]
[1739970222152,0.0984,2717.0,2716.7,3.68092]
[1739970222153,0.0984,2717.0,2716.7,3.68091]
[1739970222867,0.0984,2717.0,2716.9,3.68066]
[1739970224037,0.0984,2717.0,2716.9,4.416804]
[1739970224254,0.0984,2717.0,2716.6,3.68103]
[1739970224714,0.0984,2717.0,2716.7,3.68088]
[1739970225052,0.0984,2717.0,2716.5,3.68119]
[1739970225235,0.7625,2716.9,2716.3,0.5487]
[1739970225425,0.7625,2716.9,2716.5,3.6812]
[1739970225608,0.7625,2716.9,2716.3,3.68136]
[1739970225943,7.93855422,2716.9,2716.3,3.68136]
[1739970226859,3.49533422,2716.6,2715.6,5.9087]
[1739970227061,4.45813,2716.5,2715.6,9.59105]
[1739970227227,3.49533422,2716.3,2715.6,9.59105]
[1739970227558,3.49533422,2716.3,2715.6,12.59105]
[1739970227731,0.7769,2716.2,2715.6,9.04235]
[1739970227913,4.45852,2716.2,2715.6,9.04235]
[1739970228660,3.49533422,2716.0,2715.4,9.04259]
[1739970229212,7.17724422,2716.0,2715.4,9.04259]
[1739970230618,7.17724422,2716.0,2715.4,12.72521]
[1739970230819,7.17724422,2716.0,2715.4,9.04259]
[1739970231560,7.17724422,2716.0,2715.5,3.68254]
[1739970232262,3.49533422,2716.0,2715.5,3.68254]
[1739970232857,3.49533422,2716.0,2715.5,7.36503]
[1739970233021,3.49533422,2716.0,2715.5,7.36497]
[1739970233221,3.49533422,2716.0,2715.5,3.68248]
[1739970233414,3.49533422,2716.0,2715.6,3.6824]
[1739970233922,3.49533422,2716.0,2715.5,3.68248]
[1739970234537,3.49533422,2716.0,2715.6,3.68242]
[1739970236535,3.49533422,2716.0,2715.7,3.68229]
[1739970237145,0.7769,2716.2,2715.8,3.68208]
[1739970237689,0.7769,2716.2,2715.9,3.68192]
[1739970237917,0.7769,2716.2,2716.0,3.68186]
[1739970238041,3.49533422,2716.3,2716.0,7.36368]
[1739970238240,0.8111,2716.4,2716.0,3.68182]
[1739970238563,0.8111,2716.4,2716.2,3.68161]
[1739970238766,4.30643422,2716.6,2716.2,3.68153]
[1739970239584,4.30643422,2716.6,2716.0,0.74007264]
[1739970239780,0.8111,2716.6,2716.3,3.68147]
[1739970240483,0.8111,2716.6,2716.1,0.5487]
[1739970240682,4.30643422,2716.6,2715.9,0.5487]
[1739970240882,3.68121,2716.5,2715.9,0.5487]
[1739970241087,4.30643422,2716.6,2716.0,3.68181]
[1739970241289,7.98750422,2716.6,2716.1,3.6817]
[1739970241585,4.30643422,2716.6,2716.0,3.68181]
[1739970241786,4.30643422,2716.6,2716.2,3.6816]
[1739970241955,4.30643422,2716.6,2716.3,3.68141]
[1739970242370,0.8111,2716.6,2716.5,3.6812]
[1739970242576,0.7807,2716.8,2716.4,3.68124]
[1739970242745,3.59373422,2716.9,2716.6,3.68096]
[1739970242942,0.0984,2716.9,2716.8,3.6808]
[1739970243970,0.0984,2716.9,2716.7,7.36179]
[1739970244300,0.0984,2716.9,2716.8,3.6808]
[1739970245463,0.0984,2716.9,2716.6,5.36]
[1739970245464,3.59373422,2716.9,2716.6,5.36]
[1739970245801,0.7823,2716.8,2716.6,5.36]
[1739970246090,4.46317,2716.8,2716.1,3.68166]
[1739970246293,3.49533422,2716.6,2716.1,3.68166]
[1739970246858,7.17640422,2716.6,2716.1,3.68166]
[1739970247051,3.49533422,2716.6,2716.1,3.6817]
[1739970247382,3.49533422,2716.6,2716.2,3.6816]
[1739970247997,3.49533422,2716.6,2716.3,3.68142]
[1739970248499,3.49533422,2716.6,2716.1,3.68163]
[1739970248657,0.8235,2716.5,2716.0,3.68178]
[1739970248994,4.50471,2716.5,2716.0,4.49194192]
[1739970249326,0.8235,2716.5,2716.0,8.17375192]
[1739970249620,0.8235,2716.5,2716.0,8.17374192]
[1739970250016,0.8235,2716.5,2716.0,4.49194192]
[1739970250219,0.8235,2716.5,2716.1,3.68163]
[1739970250808,0.8235,2716.5,2716.3,3.68139]
[1739970251510,0.8235,2716.5,2716.1,3.68167]
[1739970251828,0.8047,2716.8,2716.3,3.68138]
[1739970252140,0.0984,2716.9,2716.7,3.68086]
[1739970252284,0.0984,2716.9,2716.4,4.049388]
[1739970252480,0.8047,2716.8,2716.4,0.368138]
[1739970252939,0.8047,2716.8,2716.4,4.049438]
[1739970253108,0.8047,2716.8,2715.9,9.59062]
[1739970253109,4.30003422,2716.8,2715.9,9.59062]
[1739970253419,0.8047,2716.4,2716.0,3.68188]
[1739970254109,0.8047,2716.4,2715.9,9.59062]
[1739970254290,0.8047,2716.4,2716.0,3.68187]
[1739970254497,0.8047,2716.4,2716.0,3.68188]
[1739970256418,4.48607,2716.4,2715.9,9.04198]
[1739970257223,0.8047,2716.4,2716.0,3.68179]
[1739970257395,0.8047,2716.4,2715.9,9.04192]
[1739970257725,4.48605,2716.4,2715.9,9.04192]
[1739970257927,0.8047,2716.4,2715.9,5.36]
[1739970258085,0.8047,2716.4,2715.9,9.946209]
[1739970258285,0.8047,2716.4,2716.1,3.68164]
[1739970258687,0.8047,2716.4,2716.0,3.68179]
[1739970259297,0.8047,2716.4,2716.1,3.68168]
[1739970259931,4.4861,2716.4,2715.9,9.946189]
[1739970260089,4.4861,2716.4,2715.9,9.04197]
[1739970260285,0.8047,2716.4,2715.9,9.04197]
[1739970260627,0.8047,2716.4,2716.1,3.68168]
[1739970261291,0.8047,2716.4,2715.9,9.04197]
[1739970261292,0.8047,2716.4,2715.9,9.04194]
[1739970262448,0.8047,2716.4,2715.9,3.68194]
[1739970262748,4.48615,2716.4,2715.8,3.68213]
[1739970263101,4.48615,2716.4,2715.7,9.04218]
[1739970263305,4.48615,2716.4,2715.9,3.682]
[1739970263610,4.48615,2716.4,2715.7,5.36]
[1739970263611,3.68167,2716.2,2715.7,5.36]
[1739970264006,7.17682422,2716.3,2715.8,3.68214]
[1739970264527,7.17682422,2716.3,2715.7,9.04227]
[1739970264741,7.17682422,2716.3,2715.8,3.68202]
[1739970265218,3.49533422,2716.3,2715.9,7.36387]
[1739970265420,3.49533422,2716.3,2716.0,3.68187]
[1739970265818,0.8047,2716.4,2715.9,0.03681792]
[1739970266029,0.7895,2716.8,2716.4,3.68127]
[1739970266235,0.7895,2716.8,2716.0,4.23058]
[1739970266236,7.96570422,2716.8,2716.1,5.36]
[1739970266546,3.68095,2716.7,2716.1,9.04167]
[1739970267050,7.96563422,2716.8,2716.2,3.68159]
[1739970267229,7.96563422,2716.8,2716.2,7.36313]
[1739970270055,4.28483422,2716.8,2716.3,3.68145]
[1739970270809,0.7895,2716.8,2716.4,3.68124]
[1739970271148,0.0984,2716.9,2716.6,3.68096]